bitfinex/quotes_BTCUSD_20250428
["timestamp","ask_amount","ask_price","bid_price","bid_amount"]
[1745842624370,0.001,95229.0,95228.0,1.3955124]
[1745842624571,0.001,95229.0,95228.0,1.41005325]
[1745842625234,1e-08,95230.0,95229.0,0.6127609]
[1745842625406,1e-08,95230.0,95229.0,0.76965104]
[1745842625763,1e-08,95230.0,95229.0,1.46965104]
[1745842628585,1e-08,95230.0,95229.0,1.47065104]
[1745842628769,1e-08,95235.0,95234.0,0.61454988]
[1745842628955,1e-08,95235.0,95234.0,0.72144002]
[1745842629716,1e-08,95235.0,95234.0,0.83184002]
[1745842629923,1e-08,95235.0,95234.0,1.42144002]
[1745842630629,1e-08,95244.0,95242.0,0.20999102]
[1745842630776,1e-08,95244.0,95243.0,0.41083932]
[1745842632171,1e-08,95244.0,95243.0,0.41882779]
[1745842632373,0.0028486,95269.0,95252.0,0.20996892]
[1745842632575,0.0028486,95269.0,95257.0,0.20995832]
[1745842633305,0.0028486,95269.0,95257.0,0.31684846]
[1745842633506,1e-08,95258.0,95257.0,0.70627407]
[1745842633714,1e-08,95258.0,95257.0,0.72081492]
[1745842633927,0.002,95289.0,95287.0,0.20989222]
[1745842634160,0.002,95289.0,95288.0,0.09396]
[1745842635564,0.002,95289.0,95288.0,0.10470366]
[1745842635986,0.002,95289.0,95288.0,0.11253365]
[1745842637119,0.102,95289.0,95288.0,0.01857365]
[1745842637324,0.102,95289.0,95288.0,0.11249365]
[1745842637466,0.102,95289.0,95288.0,0.09392]
[1745842638350,0.102,95289.0,95288.0,0.79392]
[1745842638797,0.102,95289.0,95288.0,0.80186453]
[1745842639162,0.102,95289.0,95288.0,0.81225765]
[1745842642750,0.102,95289.0,95288.0,1.02214766]
[1745842642950,0.102,95289.0,95288.0,0.32214766]
[1745842646359,0.1502,95289.0,95288.0,0.32214766]
[1745842646770,0.1502,95289.0,95288.0,1.02214766]
[1745842649877,0.51587795,95289.0,95288.0,0.65432707]
[1745842650069,0.01049659,95269.0,95260.0,0.09392]
[1745842650268,0.01049659,95269.0,95226.0,0.4]
[1745842650269,0.00262438,95268.0,95256.0,0.01049802]
[1745842650390,0.01049681,95267.0,95258.0,0.22045234]
[1745842650601,0.01049637,95271.0,95258.0,0.22045234]
[1745842650602,0.01049637,95271.0,95264.0,0.22043835]
[1745842650808,0.01049659,95269.0,95262.0,0.01049736]
[1745842651009,0.22043056,95269.0,95263.0,0.09392]
[1745842651206,0.20994069,95265.0,95264.0,0.7]
[1745842651412,0.21724025,95265.0,95263.0,0.09392]
[1745842651611,0.20994915,95262.0,95254.0,0.01049824]
[1745842651862,0.01049758,95260.0,95257.0,0.09392]
[1745842652062,0.01049758,95260.0,95258.0,0.09392]
[1745842652828,0.01049747,95261.0,95258.0,0.09392]
[1745842653482,0.01049725,95263.0,95258.0,0.09392]
[1745842653634,0.003,95260.0,95258.0,0.09392]
[1745842654246,0.01780443,95262.0,95258.0,0.09392]
[1745842654446,0.003,95261.0,95258.0,0.09392]
[1745842654672,0.003,95261.0,95259.0,0.09392]
[1745842655088,0.003,95261.0,95259.0,0.30387328]
[1745842655289,0.003,95261.0,95259.0,0.09392]
[1745842655614,0.003,95261.0,95259.0,0.30387368]
[1745842655872,0.003,95261.0,95259.0,0.09392]
[1745842656079,0.01049692,95266.0,95260.0,0.01049758]
[1745842656537,0.01049692,95266.0,95259.0,0.31437051]
[1745842656745,0.22043426,95267.0,95261.0,0.01049747]
[1745842657264,0.00730703,95266.0,95261.0,0.22044613]
[1745842657422,0.00730703,95266.0,95263.0,0.01049725]
[1745842657818,0.01049659,95269.0,95264.0,0.01049714]
[1745842658049,0.0104967,95268.0,95260.0,0.01049758]
[1745842658251,0.01049692,95266.0,95260.0,0.01049758]
[1745842658424,0.01049692,95266.0,95261.0,0.01049747]
[1745842659230,0.01049692,95266.0,95260.0,0.01049758]
[1745842659737,0.01049703,95265.0,95259.0,0.09392]
[1745842660341,0.01049703,95265.0,95259.0,0.10441769]
[1745842660843,0.01049703,95265.0,95259.0,0.31437099]
[1745842661126,0.01049692,95266.0,95259.0,0.31437099]
[1745842662079,0.05769626,95272.0,95263.0,0.01049725]
[1745842662301,0.08509869,95299.0,95270.0,0.20992855]
[1745842662496,0.0494,95278.0,95271.0,0.22042384]
[1745842662700,0.0073071,95273.0,95267.0,0.01049681]
[1745842662943,0.0073071,95273.0,95268.0,0.22043048]
[1745842663155,0.0073071,95273.0,95263.0,0.20994403]
[1745842663295,0.01312023,95272.0,95269.0,0.09384]
[1745842663502,0.05949692,95266.0,95260.0,0.01049758]
[1745842663747,0.049,95266.0,95261.0,0.31428594]
[1745842663965,0.049,95266.0,95263.0,0.22044183]
[1745842664761,0.049,95266.0,95264.0,0.20994289]
[1745842664951,0.049,95266.0,95264.0,0.20994238]
[1745842665153,0.049,95266.0,95263.0,0.01049725]
[1745842665367,0.049,95266.0,95263.0,0.22044029]
[1745842665568,0.149,95266.0,95263.0,0.22044029]
[1745842665777,0.149,95266.0,95264.0,0.20994153]
[1745842666207,0.149,95266.0,95265.0,0.20994069]
[1745842666383,0.149,95266.0,95264.0,0.20994153]
[1745842668774,0.149,95266.0,95265.0,0.20994069]
[1745842670657,0.1,95266.0,95265.0,0.20994069]
[1745842671877,0.1,95266.0,95265.0,0.30378069]
[1745842674884,0.1,95266.0,95265.0,0.20994069]
[1745842675083,0.1,95266.0,95265.0,0.30378069]
[1745842681784,0.1,95266.0,95265.0,0.41067083]
[1745842683903,0.1,95266.0,95265.0,0.82127083]
[1745842684660,0.1,95266.0,95265.0,1.42743083]
[1745842684861,0.1,95266.0,95265.0,1.52127083]
[1745842693568,0.1,95266.0,95265.0,1.52127083]
[1745842696858,0.102,95289.0,95288.0,0.20989001]
[1745842697077,0.102,95289.0,95288.0,0.71421001]
[1745842697747,0.102,95289.0,95288.0,0.72222582]
[1745842698174,0.102,95289.0,95288.0,0.73263649]
[1745842701430,0.102,95289.0,95288.0,1.43263649]
[1745842703156,0.102,95289.0,95288.0,0.73263649]
[1745842704324,0.102,95289.0,95288.0,1.17952663]
[1745842704789,0.0482,95309.0,95299.0,0.20986579]
[1745842705004,0.002,95309.0,95299.0,0.20986579]
[1745842707430,0.002,95309.0,95299.0,0.90986579]
[1745842707672,2.20990754,95300.0,95299.0,1.24986579]
[1745842707898,1.3023275,95300.0,95299.0,1.76735593]
[1745842708351,1.26036339,95300.0,95299.0,1.76735593]
[1745842709197,1.26036339,95300.0,95299.0,1.06735593]
[1745842711032,1.26036339,95300.0,95299.0,1.76735593]
[1745842711439,1.22364993,95300.0,95299.0,1.76735593]
[1745842711830,1.20301933,95300.0,95299.0,1.76735593]
[1745842717250,0.69746589,95300.0,95299.0,1.76735593]
[1745842717433,0.69746589,95300.0,95299.0,2.08207593]
[1745842718413,0.79386589,95300.0,95299.0,1.519]
[1745842718974,0.79386589,95300.0,95299.0,0.819]
[1745842719111,0.79386589,95300.0,95299.0,0.53182822]
[1745842719311,0.79386589,95300.0,95299.0,0.4084]
[1745842720840,0.79386589,95300.0,95299.0,0.31472]
[1745842721039,0.79386589,95300.0,95299.0,0.4084]
[1745842725533,0.79386589,95300.0,95299.0,0.40832]
[1745842733952,1.00372947,95300.0,95299.0,0.40832]
[1745842734157,0.79386589,95300.0,95299.0,0.40832]
[1745842734739,0.79386589,95300.0,95299.0,0.31472]
[1745842734940,0.79386589,95300.0,95299.0,0.40832]
[1745842736999,0.79386589,95300.0,95299.0,0.0936]
[1745842740714,0.79386589,95300.0,95299.0,0.30346579]
[1745842741120,0.79386589,95300.0,95299.0,0.0936]
[1745842746378,0.80120212,95300.0,95299.0,0.0936]
[1745842747617,0.82077841,95300.0,95299.0,0.0936]
[1745842752827,0.82077841,95300.0,95293.0,0.01049395]
[1745842753035,0.82077841,95300.0,95297.0,0.0104935]
[1745842753237,0.01957629,95299.0,95297.0,0.0104935]
[1745842753542,0.02691252,95298.0,95297.0,0.0104935]
[1745842754642,0.02691252,95298.0,95295.0,0.22036628]
[1745842754907,0.00733623,95298.0,95295.0,0.22036628]
[1745842755123,0.00733623,95298.0,95296.0,0.20987048]
[1745842755328,0.79586589,95300.0,95298.0,0.20986585]
[1745842755648,0.69946589,95300.0,95299.0,0.20986579]
[1745842756012,0.70481217,95300.0,95299.0,0.20986579]
[1745842756227,0.72440224,95300.0,95299.0,0.20986579]
[1745842756429,0.72440224,95300.0,95295.0,0.01049372]
[1745842756608,0.00734628,95299.0,95296.0,0.01049361]
[1745842756823,0.00734628,95299.0,95297.0,0.09352]
[1745842757249,0.00734628,95298.0,95297.0,0.09352]
[1745842759353,0.31641427,95298.0,95297.0,0.09352]
[1745842759563,0.20988781,95289.0,95288.0,0.00801581]
[1745842759769,0.20989662,95285.0,95284.0,0.09352]
[1745842759981,0.20989662,95285.0,95270.0,0.21710822]
[1745842759982,0.20992747,95271.0,95270.0,0.21710822]
[1745842760182,0.25825168,95271.0,95270.0,0.21710822]
[1745842760456,0.25562747,95271.0,95270.0,0.21710822]
[1745842761689,0.30432747,95271.0,95270.0,0.21710822]
[1745842762278,0.30432747,95271.0,95268.0,0.09352]
[1745842762279,0.20993187,95269.0,95268.0,0.09352]
[1745842762526,0.21255613,95269.0,95268.0,0.09352]
[1745842762730,0.00262426,95269.0,95268.0,0.09352]
[1745842763547,0.00562426,95269.0,95268.0,0.09352]
[1745842764633,0.00562426,95269.0,95268.0,0.10157781]
[1745842765585,0.003,95269.0,95268.0,0.31151189]
[1745842775168,0.003,95269.0,95268.0,0.31155189]
[1745842775970,0.003,95269.0,95268.0,0.10161781]
[1745842776404,0.003,95269.0,95268.0,0.31155189]
[1745842782075,0.26273187,95269.0,95268.0,0.10161781]
[1745842783114,0.37694293,95269.0,95268.0,0.00805781]
[1745842783284,0.2099495,95261.0,95260.0,0.000424]
[1745842783492,0.31946425,95261.0,95260.0,0.000424]
[1745842783696,0.31683964,95261.0,95260.0,0.000424]
[1745842784098,0.32416056,95261.0,95260.0,0.000424]
[1745842785263,0.37166056,95261.0,95260.0,0.000424]
[1745842785681,0.37166056,95261.0,95260.0,0.014424]
[1745842786046,0.37166056,95261.0,95260.0,0.028424]
[1745842786887,0.37166056,95261.0,95260.0,0.03638239]
[1745842787259,0.39117122,95261.0,95260.0,0.03638239]
[1745842791338,0.37166056,95261.0,95260.0,0.03638239]
[1745842797635,0.36433964,95261.0,95260.0,0.03638239]
[1745842799212,0.15439014,95261.0,95260.0,0.03638239]
[1745842801005,0.16171142,95261.0,95260.0,0.03638239]
[1745842801823,0.15439014,95261.0,95260.0,0.03638239]
[1745842802388,0.0486,95275.0,95266.0,0.01049692]
[1745842802800,0.00262418,95274.0,95266.0,0.22043479]
[1745842803024,0.0486,95275.0,95260.0,0.29820995]
[1745842803025,0.01049626,95272.0,95260.0,0.29820995]
[1745842803371,0.01312055,95271.0,95260.0,0.02238239]
[1745842803572,0.00262418,95271.0,95264.0,0.01049714]
[1745842803721,0.21255215,95271.0,95266.0,0.012]
[1745842803900,0.00262418,95271.0,95266.0,0.012]
[1745842804254,0.00732304,95270.0,95266.0,0.012]
[1745842804467,0.00262418,95269.0,95260.0,0.00838239]
[1745842804669,0.01312077,95269.0,95260.0,0.00838239]
[1745842804874,0.00262418,95269.0,95264.0,0.003]
[1745842805185,0.00262418,95269.0,95262.0,0.01049736]
[1745842805410,0.00262427,95268.0,95261.0,0.01049747]
[1745842805611,0.00262427,95268.0,95264.0,0.01049714]
[1745842805861,0.00262427,95271.0,95264.0,0.01049714]
[1745842806032,0.01049648,95270.0,95261.0,0.22044286]
[1745842806247,0.00262427,95269.0,95262.0,0.22044451]
[1745842806443,0.00262427,95269.0,95263.0,0.01049725]
[1745842806652,0.01312064,95271.0,95266.0,0.012]
[1745842806857,0.01049648,95270.0,95262.0,0.01049736]
[1745842807056,0.00262427,95269.0,95262.0,0.01049736]
[1745842807447,0.00262427,95269.0,95262.0,0.01249736]
[1745842807875,0.00262427,95269.0,95266.0,0.012]
[1745842808275,0.00262427,95269.0,95262.0,0.002]
[1745842808483,0.00262432,95269.0,95262.0,0.005]
[1745842808729,0.01312091,95269.0,95262.0,0.005]
[1745842809199,0.00733002,95268.0,95262.0,0.005]
[1745842809399,0.00262427,95267.0,95262.0,0.005]
[1745842809605,0.01049703,95265.0,95262.0,0.005]
[1745842809769,0.00262452,95264.0,95262.0,0.003]
[1745842809960,0.00262443,95267.0,95266.0,0.011]
[1745842810184,0.00995445,95267.0,95266.0,0.023]
[1745842810676,0.00995445,95267.0,95261.0,0.01049747]
[1745842810880,0.00262443,95266.0,95262.0,0.003]
[1745842811265,0.00262443,95266.0,95262.0,0.01049736]
[1745842811595,0.01049626,95272.0,95266.0,0.011]
[1745842811782,0.10689014,95271.0,95266.0,0.011]
[1745842812192,0.11738651,95271.0,95266.0,0.011]
[1745842812394,0.00733357,95270.0,95266.0,0.011]
[1745842812697,0.10689014,95269.0,95266.0,0.011]
[1745842812905,0.10689014,95269.0,95263.0,0.01049725]
[1745842813315,0.00733357,95268.0,95263.0,0.01049725]
[1745842813672,0.00262438,95267.0,95263.0,0.01049725]
[1745842813809,0.00995795,95267.0,95266.0,0.011]
[1745842814374,0.00995795,95267.0,95262.0,0.10397736]
[1745842814736,0.00733357,95266.0,95263.0,0.005]
[1745842814940,0.00262438,95265.0,95263.0,0.005]
[1745842815145,0.00262438,95265.0,95263.0,0.002]
[1745842815786,0.00262439,95267.0,95263.0,0.002]
[1745842815966,0.00262439,95267.0,95262.0,0.31392439]
[1745842816172,0.00262439,95267.0,95262.0,0.10597736]
[1745842816372,0.01955072,95266.0,95262.0,0.10597736]
[1745842816620,0.00262438,95265.0,95262.0,0.09348]
[1745842816820,0.00262439,95264.0,95262.0,0.09348]
[1745842817123,0.00262439,95267.0,95263.0,0.006]
[1745842817290,0.00733185,95266.0,95263.0,0.002]
[1745842817499,0.00262439,95265.0,95263.0,0.002]
[1745842818044,0.00733185,95264.0,95262.0,0.10397736]
[1745842818223,0.00262438,95263.0,95262.0,0.10397736]
[1745842818931,0.00262438,95263.0,95262.0,0.09348]
[1745842819078,0.00995623,95263.0,95262.0,0.09348]
[1745842819311,0.00733185,95263.0,95262.0,0.09648]
[1745842819742,0.00733185,95263.0,95262.0,0.09348]
[1745842820169,0.00833185,95263.0,95262.0,0.09348]
[1745842822350,0.001,95263.0,95262.0,0.3034273]
[1745842823866,0.01049659,95269.0,95262.0,0.09348]
[1745842824074,0.01049637,95271.0,95262.0,0.09348]
[1745842824075,0.00262431,95268.0,95262.0,0.09348]
[1745842824264,0.001,95263.0,95261.0,0.2099495]
[1745842824472,0.001,95263.0,95262.0,0.0934]
[1745842824750,0.00833507,95263.0,95262.0,0.0934]
[1745842824951,0.00833507,95263.0,95262.0,0.3033473]
[1745842825494,0.00733507,95263.0,95262.0,0.3033473]
[1745842825890,0.00733507,95263.0,95262.0,0.3063473]
[1745842826383,0.00733507,95263.0,95262.0,0.3033473]
[1745842826534,0.00733507,95263.0,95262.0,0.0934]
[1745842826717,0.02789993,95263.0,95262.0,0.0934]
[1745842826922,0.02789993,95263.0,95262.0,0.3033473]
[1745842827105,0.02789993,95263.0,95262.0,0.0934]
[1745842827309,0.02789993,95263.0,95262.0,0.3033473]
[1745842828825,0.02789993,95263.0,95262.0,0.0934]
[1745842829250,0.00833507,95263.0,95262.0,0.0934]
[1745842830070,0.00833507,95263.0,95262.0,0.3033473]
[1745842830788,0.00833507,95263.0,95262.0,0.0934]
[1745842831339,0.02790745,95263.0,95262.0,0.0934]
[1745842831542,0.02790745,95263.0,95262.0,0.31265146]
[1745842832930,0.02790745,95263.0,95262.0,0.10270416]
[1745842833975,0.02790745,95263.0,95262.0,0.00930416]
[1745842834205,0.45191634,95263.0,95262.0,0.00930416]
[1745842834389,0.44929172,95263.0,95262.0,0.00930416]
[1745842834608,0.2549495,95261.0,95260.0,0.00838239]
[1745842834816,0.38141202,95261.0,95260.0,0.00838239]
[1745842835222,0.38874709,95261.0,95260.0,0.00838239]
[1745842835647,0.39852365,95261.0,95260.0,0.00838239]
[1745842836449,0.39852365,95261.0,95260.0,0.01938239]
[1745842836859,0.39852365,95261.0,95260.0,0.03038239]
[1745842839956,0.38874709,95261.0,95260.0,0.03038239]
[1745842846673,0.44988794,95261.0,95260.0,0.022424]
[1745842853119,0.78988794,95261.0,95260.0,0.022424]
[1745842855848,0.78988794,95261.0,95260.0,0.021924]
[1745842870452,0.34374709,95261.0,95260.0,0.021924]
[1745842881294,0.34374709,95261.0,95260.0,0.021924]
[1745842882477,0.56449917,95257.0,95256.0,0.0004246]
[1745842882685,1.19766169,95257.0,95256.0,1e-08]
[1745842882890,0.21001344,95232.0,95231.0,0.002]
[1745842883114,0.38017026,95232.0,95231.0,0.002]
[1745842883323,0.81923592,95232.0,95231.0,0.002]
[1745842883555,0.82657099,95232.0,95231.0,0.002]
[1745842883792,0.74445188,95232.0,95231.0,0.002]
[1745842884231,0.74445188,95232.0,95206.0,0.09328]
[1745842884232,0.22457193,95224.0,95206.0,0.09328]
[1745842884440,0.35103445,95224.0,95206.0,0.09328]
[1745842884893,0.2245984,95212.0,95199.0,0.0004246]
[1745842885230,0.33148854,95212.0,95199.0,0.0004246]
[1745842885408,0.33148854,95212.0,95201.0,0.00777679]
[1745842885608,0.35839599,95212.0,95201.0,0.00777679]
[1745842886569,0.69839599,95212.0,95199.0,0.0004246]
[1745842887447,0.70639599,95212.0,95211.0,0.003]
[1745842887650,0.71339599,95212.0,95211.0,0.003]
[1745842887936,0.82028613,95212.0,95211.0,0.003]
[1745842888899,0.81228613,95212.0,95211.0,0.002]
[1745842889103,0.81328613,95212.0,95211.0,0.007]
[1745842889666,0.70639599,95212.0,95211.0,0.007]
[1745842889786,0.74809599,95212.0,95211.0,0.007]
[1745842890003,0.74909599,95212.0,95211.0,0.019]
[1745842892479,0.22462488,95200.0,95199.0,1e-08]
[1745842892649,0.33151502,95200.0,95199.0,1e-08]
[1745842892848,0.33885009,95200.0,95199.0,1e-08]
[1745842893768,0.34085009,95200.0,95199.0,0.00900001]
[1745842895263,0.34185009,95200.0,95199.0,0.01600001]
[1745842895758,0.34085009,95200.0,95199.0,0.00900001]
[1745842896127,0.33985009,95200.0,95199.0,0.00600001]
[1745842896333,0.5385667,95200.0,95199.0,0.00600001]
[1745842896579,0.79602247,95200.0,95199.0,0.00600001]
[1745842897914,1.20662247,95200.0,95199.0,0.00600001]
[1745842901277,1.20662247,95200.0,95199.0,1e-08]
[1745842909487,1.20762247,95200.0,95199.0,1e-08]
[1745842909682,1.31451261,95200.0,95199.0,1e-08]
[1745842910295,1.20762247,95200.0,95199.0,1e-08]
[1745842910655,1.20662247,95200.0,95199.0,1e-08]
[1745842910854,0.55009948,95193.0,95192.0,0.0004247]
[1745842911022,0.69110285,95193.0,95192.0,0.0004247]
[1745842911223,0.69843792,95193.0,95192.0,0.0004247]
[1745842913143,0.69943792,95193.0,95192.0,0.0004247]
[1745842913732,0.70043792,95193.0,95192.0,0.0024247]
[1745842917710,0.34589707,95193.0,95192.0,0.0024247]
[1745842921500,0.36043792,95193.0,95192.0,0.0024247]
[1745842923306,0.38977997,95193.0,95192.0,0.0024247]
[1745842924067,0.21012817,95180.0,95175.0,0.00769546]
[1745842924222,0.35113154,95180.0,95173.0,0.0004242]
[1745842924855,0.35846661,95180.0,95173.0,0.0004242]
[1745842925253,0.35946661,95180.0,95173.0,0.0004242]
[1745842925447,0.36046661,95180.0,95179.0,0.0024243]
[1745842926266,0.38982079,95180.0,95179.0,0.0024243]
[1745842926832,0.36046661,95180.0,95179.0,0.0024243]
[1745842927235,0.37528712,95180.0,95179.0,0.0024243]
[1745842927458,0.34592576,95180.0,95179.0,0.0024243]
[1745842930446,0.02890745,95180.0,95179.0,0.0515243]
[1745842930619,0.02890745,95180.0,95179.0,0.05781947]
[1745842931021,0.03153414,95180.0,95179.0,0.0515243]
[1745842931198,0.03153413,95180.0,95179.0,0.05776662]
[1745842931955,0.03153413,95180.0,95179.0,0.0515243]
[1745842933892,0.13842427,95180.0,95179.0,0.0024243]
[1745842934519,0.13257809,95180.0,95179.0,0.0024243]
[1745842935956,0.02306127,95180.0,95179.0,0.0024243]
[1745842936156,0.02306127,95180.0,95179.0,0.0940243]
[1745842936562,0.02306127,95180.0,95179.0,0.10028998]
[1745842936776,0.02206127,95180.0,95179.0,0.10028998]
[1745842936981,0.02306127,95180.0,95179.0,0.10028998]
[1745842937186,0.00833507,95180.0,95179.0,0.09828998]
[1745842937406,0.01633507,95180.0,95179.0,0.09828998]
[1745842937610,0.01533507,95180.0,95179.0,0.09828998]
[1745842937807,0.02333507,95180.0,95179.0,0.09828998]
[1745842938141,0.02333507,95180.0,95179.0,0.09328998]
[1745842939050,0.016,95180.0,95179.0,0.09328998]
[1745842939247,0.116,95180.0,95179.0,0.09328998]
[1745842940405,0.116,95180.0,95179.0,0.30342036]
[1745842941616,0.116,95180.0,95179.0,1.05402036]
[1745842941790,0.116,95180.0,95179.0,1.05502036]
[1745842942000,0.22054554,95219.0,95209.0,0.0105032]
[1745842942200,0.33006362,95218.0,95210.0,0.01050309]
[1745842942417,0.11739235,95218.0,95211.0,0.01050298]
[1745842942623,0.00733282,95217.0,95211.0,0.01638536]
[1745842942780,0.10689014,95216.0,95211.0,0.01638536]
[1745842942988,0.10689014,95216.0,95211.0,0.00588238]
[1745842943164,0.10689014,95216.0,95211.0,0.01649424]
[1745842943370,0.10689014,95216.0,95211.0,0.00588238]
[1745842943573,0.00262578,95215.0,95211.0,0.00588238]
[1745842943785,0.00262578,95215.0,95211.0,0.01188238]
[1745842943991,0.21005633,95213.0,95211.0,0.01188238]
[1745842944241,0.00262578,95212.0,95211.0,0.00588238]
[1745842944461,0.00262578,95212.0,95211.0,0.01288238]
[1745842944655,0.00262577,95213.0,95211.0,0.01288238]
[1745842944860,0.00262577,95213.0,95211.0,0.00588238]
[1745842945059,0.00362577,95213.0,95211.0,0.01388238]
[1745842945263,0.00362577,95213.0,95211.0,0.00588238]
[1745842945442,0.21005755,95212.0,95211.0,0.00588238]
[1745842945802,0.00362578,95212.0,95211.0,0.016]
[1745842946204,0.00362578,95212.0,95211.0,0.01389457]
[1745842946441,0.00362578,95212.0,95211.0,0.02289457]
[1745842946641,0.001,95212.0,95211.0,0.02289457]
[1745842946858,0.10689014,95216.0,95211.0,0.01639755]
[1745842947034,0.10689014,95216.0,95211.0,0.00589457]
[1745842947238,0.001,95212.0,95211.0,0.01489457]
[1745842948182,0.001,95212.0,95211.0,0.02289457]
[1745842948920,0.1,95212.0,95211.0,0.00589457]
[1745842949128,0.1,95212.0,95211.0,0.01689457]
[1745842949449,0.1,95212.0,95211.0,0.00512076]
[1745842949651,0.1,95212.0,95210.0,0.0932]
[1745842949825,0.1,95212.0,95211.0,0.00475288]
[1745842950033,0.31105787,95212.0,95211.0,0.01675288]
[1745842950210,0.31105787,95212.0,95211.0,0.01261641]
[1745842950417,0.31005787,95212.0,95211.0,0.00061641]
[1745842950646,0.31005787,95212.0,95210.0,0.0932]
[1745842950803,0.101,95212.0,95211.0,0.00475288]
[1745842951203,0.101,95212.0,95211.0,0.01275288]
[1745842951204,0.102,95212.0,95211.0,0.01275288]
[1745842951611,0.101,95212.0,95211.0,0.21481264]
[1745842952064,0.101,95212.0,95211.0,0.00475288]
[1745842952264,0.101,95212.0,95211.0,0.21481264]
[1745842952464,0.101,95212.0,95211.0,0.22081264]
[1745842952670,0.102,95212.0,95211.0,0.22881264]
[1745842953164,0.102,95212.0,95211.0,0.01875288]
[1745842953810,0.102,95212.0,95211.0,0.41015288]
[1745842953993,0.102,95212.0,95211.0,0.50335288]
[1745842954198,0.102,95212.0,95211.0,0.71341264]
[1745842954943,0.102,95212.0,95211.0,0.50335288]
[1745842955942,0.102,95212.0,95211.0,0.71341264]
[1745842956266,0.102,95212.0,95211.0,0.50335288]
[1745842957671,0.102,95212.0,95211.0,0.4986]
[1745842958102,0.102,95212.0,95211.0,0.49923184]
[1745842958279,0.102,95212.0,95211.0,0.5044723]
[1745842959142,0.102,95212.0,95211.0,0.4986]
[1745842960876,0.31205755,95212.0,95211.0,0.4986]
[1745842961536,0.31205755,95212.0,95211.0,0.5044723]
[1745842963563,0.102,95212.0,95211.0,0.5044723]
[1745842964080,0.102,95212.0,95211.0,0.4054]
[1745842964313,0.102,95212.0,95211.0,0.5044662]
[1745842964501,0.31205755,95212.0,95211.0,0.5044662]
[1745842965760,0.102,95212.0,95211.0,0.5044662]
[1745842965971,0.102,95212.0,95211.0,0.4986]
[1745842966371,0.31205755,95212.0,95211.0,0.5044662]
[1745842967120,0.102,95212.0,95211.0,0.5044662]
[1745842967303,0.31205755,95212.0,95211.0,0.5044662]
[1745842967543,0.31205755,95212.0,95211.0,0.4986]
[1745842968071,0.31939069,95212.0,95211.0,0.4986]
[1745842971554,0.33899854,95212.0,95211.0,0.4986]
[1745842972588,0.12894099,95212.0,95211.0,0.4986]
[1745842974577,0.33899854,95212.0,95211.0,0.4986]
[1745842977856,0.33899854,95212.0,95211.0,0.4054]
[1745842978053,0.33899854,95212.0,95211.0,0.49856]
[1745842979313,0.44588868,95212.0,95211.0,0.49856]
[1745842979452,0.49478868,95212.0,95211.0,0.49856]
[1745842979664,0.49478868,95212.0,95211.0,0.50445833]
[1745842982417,0.49478868,95212.0,95211.0,0.41129833]
[1745842983037,0.49478868,95212.0,95211.0,0.01989833]
[1745842983461,0.49478868,95212.0,95211.0,0.014]
[1745842983621,0.49378868,95212.0,95211.0,0.006]
[1745842983798,0.49378868,95212.0,95211.0,0.008]
[1745842983979,0.49278868,95212.0,95211.0,0.002]
[1745842984187,0.49278868,95212.0,95211.0,0.003]
[1745842984879,0.23383113,95212.0,95211.0,0.003]
[1745842985091,0.12694099,95212.0,95211.0,0.003]
[1745842985507,0.12694099,95212.0,95211.0,0.00362963]
[1745842986127,0.12694099,95212.0,95211.0,0.21368939]
[1745842986649,0.10733314,95212.0,95211.0,0.21368939]
[1745842986873,0.10733314,95212.0,95211.0,0.21305976]
[1745842987092,0.10733314,95212.0,95211.0,0.21205976]
[1745842987332,0.10733314,95212.0,95211.0,0.94345976]
[1745842987524,0.12233314,95212.0,95211.0,0.94445976]
[1745842987709,0.115,95212.0,95211.0,0.94445976]
[1745842988352,0.1,95212.0,95211.0,0.94345976]
[1745842988753,0.113,95212.0,95211.0,0.94445976]
[1745842994579,0.113,95212.0,95211.0,1.03761976]
[1745842994778,0.113,95212.0,95211.0,1.03561976]
[1745842995566,0.113,95212.0,95211.0,1.06961976]
[1745842995768,0.124,95212.0,95211.0,1.2248099]
[1745842995995,0.0008492,95238.0,95237.0,0.21000241]
[1745842996201,0.0008492,95238.0,95237.0,0.69456241]
[1745842997969,0.0138492,95238.0,95237.0,0.71475822]
[1745842999620,0.0138492,95238.0,95237.0,0.48087309]
[1745843000046,0.1138492,95238.0,95237.0,0.48087309]
[1745843000224,0.1238492,95238.0,95237.0,0.48187309]
[1745843000424,0.1238492,95238.0,95237.0,0.48979084]
[1745843000835,0.1238492,95238.0,95237.0,0.69979325]
[1745843002054,0.1238492,95238.0,95237.0,0.48979084]
[1745843002882,0.1238492,95238.0,95237.0,0.69979325]
[1745843004336,0.1238492,95238.0,95237.0,0.48979084]
[1745843004933,0.1238492,95238.0,95237.0,0.69979325]
[1745843005137,0.1238492,95238.0,95237.0,0.48979084]
[1745843005339,0.1238492,95238.0,95237.0,0.69979325]
[1745843006095,0.1238492,95238.0,95237.0,0.48979084]
[1745843006777,0.1238492,95238.0,95237.0,0.69979325]
[1745843010289,0.1238492,95238.0,95237.0,0.48979084]
[1745843010490,0.1238492,95238.0,95237.0,0.69979325]
[1745843010866,0.1238492,95238.0,95237.0,0.48979084]
[1745843012770,0.1238492,95238.0,95237.0,0.69979325]
[1745843013759,0.1238492,95238.0,95237.0,0.48979084]
[1745843014168,0.1238492,95238.0,95237.0,0.69979325]
[1745843017733,0.1238492,95238.0,95237.0,0.48979084]
[1745843019697,0.1238492,95238.0,95237.0,0.69979325]
[1745843025311,0.13119634,95238.0,95237.0,0.69979325]
[1745843025882,0.13119634,95238.0,95237.0,0.69971325]
[1745843029857,0.17729634,95238.0,95237.0,0.25380322]
[1745843030050,0.17729634,95238.0,95237.0,0.46380563]
[1745843032744,0.17729634,95238.0,95237.0,0.25380322]
[1745843032890,0.17729634,95238.0,95237.0,0.66440322]
[1745843034439,0.17729634,95238.0,95237.0,0.87440563]
[1745843034873,0.13119634,95238.0,95237.0,0.87440563]
[1745843035696,0.1238492,95238.0,95237.0,0.87440563]
[1745843035927,0.1238492,95238.0,95237.0,1.32129577]
[1745843036537,0.1238492,95238.0,95237.0,2.02129577]
[1745843036688,0.1108492,95238.0,95237.0,2.02029577]
[1745843037094,0.1188492,95238.0,95237.0,2.02129577]
[1745843037473,0.1008492,95238.0,95237.0,2.01929577]
[1745843037775,0.1148492,95238.0,95237.0,2.02029577]
[1745843038291,0.1058492,95238.0,95237.0,2.01929577]